bitfinex/quotes_BTCUSD_20250208
["timestamp","ask_amount","ask_price","bid_price","bid_amount"]
[1739045223081,0.15580689,96553.0,96552.0,0.0823]
[1739045224253,0.00045189,96553.0,96549.0,0.0466]
[1739045224517,0.155366,96546.0,96545.0,0.081]
[1739045225533,0.155371,96543.0,96542.0,0.0001067]
[1739045225706,0.155374,96541.0,96540.0,0.0468197]
[1739045225905,0.155374,96541.0,96540.0,0.0562347]
[1739045226112,0.155374,96541.0,96540.0,0.0468197]
[1739045227112,0.1747006,96541.0,96540.0,0.0468197]
[1739045227713,0.1777006,96541.0,96540.0,0.0468197]
[1739045227917,0.26061786,96541.0,96540.0,0.0468197]
[1739045228511,0.24129126,96541.0,96540.0,0.0468197]
[1739045229487,0.241219,96541.0,96540.0,0.0468197]
[1739045230558,0.16130174,96541.0,96540.0,0.0468197]
[1739045230809,0.006,96541.0,96540.0,0.0468197]
[1739045231155,0.006,96541.0,96540.0,0.137199]
[1739045231731,0.003,96541.0,96540.0,0.137199]
[1739045232187,0.01718425,96546.0,96541.0,0.081]
[1739045232741,0.32281135,96547.0,96542.0,0.00937678]
[1739045233192,0.32281135,96547.0,96541.0,0.081]
[1739045233193,0.155367,96546.0,96541.0,0.081]
[1739045233409,0.00045189,96553.0,96543.0,0.09037552]
[1739045233611,0.00045189,96553.0,96551.0,0.1283]
[1739045233788,0.00045189,96553.0,96551.0,0.283657]
[1739045234444,0.00045189,96553.0,96551.0,0.202657]
[1739045234644,0.00045189,96553.0,96552.0,0.12933566]
[1739045234967,0.00045189,96553.0,96552.0,0.13766419]
[1739045235169,0.00445189,96553.0,96552.0,0.13766419]
[1739045235771,0.00045189,96553.0,96552.0,0.13766419]
[1739045236185,0.00145189,96553.0,96552.0,0.13766419]
[1739045236988,0.01713148,96553.0,96552.0,0.13766419]
[1739045237393,0.01613148,96553.0,96552.0,0.13766419]
[1739045237712,0.01713148,96553.0,96552.0,0.13766419]
[1739045238053,0.01813148,96553.0,96552.0,0.13766419]
[1739045238813,0.01913148,96553.0,96552.0,0.13766419]
[1739045239221,0.00345189,96553.0,96552.0,0.13766419]
[1739045240068,0.00245189,96553.0,96552.0,0.13766419]
[1739045240268,0.00245189,96553.0,96552.0,0.29302019]
[1739045240608,0.00145189,96553.0,96552.0,0.29302019]
[1739045241130,0.00045189,96553.0,96552.0,0.13766419]
[1739045245446,0.00167617,96553.0,96552.0,0.13766419]
[1739045246638,0.00267617,96553.0,96552.0,0.13766419]
[1739045247358,0.00167617,96553.0,96552.0,0.13766419]
[1739045247586,0.00267617,96553.0,96552.0,0.13766419]
[1739045247808,0.02025074,96553.0,96552.0,0.13766419]
[1739045247996,0.00267617,96553.0,96552.0,0.13766419]
[1739045250305,0.00267617,96553.0,96552.0,0.29302019]
[1739045250436,0.00267617,96553.0,96552.0,0.13766419]
[1739045250628,0.00267617,96553.0,96552.0,0.29302019]
[1739045251699,0.00267617,96553.0,96552.0,0.13766419]
[1739045254515,0.02019883,96553.0,96552.0,0.05666419]
[1739045255523,0.00267617,96553.0,96552.0,0.05666419]
[1739045255736,0.00067617,96553.0,96552.0,0.05666419]
[1739045255936,0.00167617,96553.0,96552.0,0.05666419]
[1739045256500,0.00167617,96553.0,96552.0,0.21202019]
[1739045256961,0.00267617,96553.0,96552.0,0.21202019]
[1739045257132,0.00267617,96553.0,96552.0,0.05666419]
[1739045257891,0.00267617,96553.0,96552.0,0.21202019]
[1739045258967,0.00267617,96553.0,96552.0,0.29222019]
[1739045259575,0.00167617,96553.0,96552.0,0.29222019]
[1739045260537,0.00067617,96553.0,96552.0,0.29222019]
[1739045262814,0.155339,96563.0,96554.0,0.155352]
[1739045263014,0.15534,96563.0,96554.0,0.155352]
[1739045263311,0.155341,96562.0,96555.0,0.01046644]
[1739045263475,0.15,96564.0,96555.0,0.16581744]
[1739045263677,0.305337,96564.0,96555.0,0.16581744]
[1739045264441,0.004,96563.0,96555.0,0.16581744]
[1739045264577,0.155337,96564.0,96555.0,0.01046644]
[1739045264789,0.155337,96564.0,96555.0,0.16581744]
[1739045264994,0.159337,96564.0,96555.0,0.155351]
[1739045265237,0.159337,96564.0,96556.0,0.01046518]
[1739045265238,0.155339,96563.0,96556.0,0.01046518]
[1739045265642,0.155339,96563.0,96553.0,0.155353]
[1739045265643,0.160339,96563.0,96553.0,0.155353]
[1739045265849,0.160339,96563.0,96557.0,0.01046392]
[1739045266068,0.155339,96563.0,96557.0,0.01046392]
[1739045266222,0.155339,96563.0,96553.0,0.155353]
[1739045266467,0.164339,96563.0,96558.0,0.01046267]
[1739045266684,0.164339,96563.0,96553.0,0.155353]
[1739045266831,0.159339,96563.0,96559.0,0.01046141]
[1739045267035,0.159339,96563.0,96553.0,0.155353]
[1739045267390,0.164339,96563.0,96553.0,0.155353]
[1739045267719,0.164339,96563.0,96554.0,0.0104677]
[1739045268160,0.168339,96563.0,96554.0,0.0104677]
[1739045268580,0.163339,96563.0,96554.0,0.0104677]
[1739045268926,0.168339,96563.0,96554.0,0.0104677]
[1739045269148,0.168339,96563.0,96557.0,0.0001067]
[1739045269369,0.168339,96563.0,96558.0,0.01046267]
[1739045269838,0.160339,96563.0,96558.0,0.01046267]
[1739045269983,0.159339,96563.0,96558.0,0.01046267]
[1739045270192,0.164339,96563.0,96558.0,0.01046267]
[1739045270644,0.168339,96563.0,96558.0,0.01046267]
[1739045271410,0.155342,96561.0,96558.0,0.01046267]
[1739045271607,0.013,96563.0,96558.0,0.01046267]
[1739045271754,0.008,96563.0,96558.0,0.01046267]
[1739045271971,0.155345,96560.0,96558.0,0.01046267]
[1739045273185,0.155345,96559.0,96558.0,0.01046267]
[1739045274330,0.158345,96559.0,96558.0,0.01046267]
[1739045275120,0.162345,96559.0,96558.0,0.01046267]
[1739045275971,0.155347,96558.0,96557.0,0.0001067]
[1739045277404,0.158347,96558.0,96557.0,0.0001067]
[1739045278064,0.161347,96558.0,96557.0,0.0001067]
[1739045281530,0.158347,96558.0,96557.0,0.0001067]
[1739045281749,1.32054596,96558.0,96557.0,0.0001067]
[1739045281947,1.40734596,96558.0,96557.0,0.0001067]
[1739045282319,1.41677765,96558.0,96557.0,0.0001067]
[1739045282521,1.42214535,96558.0,96557.0,0.0001067]
[1739045282729,1.44149207,96558.0,96557.0,0.0001067]
[1739045283380,1.43749207,96558.0,96557.0,0.0001067]
[1739045283580,1.44149207,96558.0,96557.0,0.0001067]
[1739045284052,1.54399572,96558.0,96557.0,0.0001067]
[1739045284571,1.53899572,96558.0,96557.0,0.0001067]
[1739045284777,1.54399572,96558.0,96557.0,0.0001067]
[1739045285334,1.44149207,96558.0,96557.0,0.0001067]
[1739045285540,1.37559607,96558.0,96557.0,0.0001067]
[1739045286851,1.20114307,96558.0,96557.0,0.0001067]
[1739045287230,1.18179635,96558.0,96557.0,0.0001067]
[1739045287445,1.17279635,96558.0,96557.0,0.0001067]
[1739045287742,0.97260835,96558.0,96557.0,0.0001067]
[1739045288084,0.93237435,96558.0,96557.0,0.0001067]
[1739045288624,0.92437435,96558.0,96557.0,0.0001067]
[1739045289853,0.93237435,96558.0,96557.0,0.0001067]
[1739045290601,1.034878,96558.0,96557.0,0.0001067]
[1739045291395,0.93237435,96558.0,96557.0,0.0001067]
[1739045291807,0.84957435,96558.0,96557.0,0.0001067]
[1739045291959,0.7470707,96558.0,96557.0,0.0001067]
[1739045292547,0.7213147,96558.0,96557.0,0.0001067]
[1739045292698,0.7053807,96558.0,96557.0,0.0001067]
[1739045293116,0.80788435,96558.0,96557.0,0.0001067]
[1739045293721,0.7130207,96558.0,96557.0,0.0001067]
[1739045293942,0.7053807,96558.0,96557.0,0.0001067]
[1739045294146,0.7130207,96558.0,96557.0,0.0001067]
[1739045297614,0.7323362,96558.0,96557.0,0.0001067]
[1739045302788,0.7130207,96558.0,96557.0,0.0001067]
[1739045304001,0.81552435,96558.0,96557.0,0.0001067]
[1739045304417,0.7130207,96558.0,96557.0,0.0001067]
[1739045305867,0.81552435,96558.0,96557.0,0.0001067]
[1739045310615,0.51017735,96558.0,96557.0,0.0001067]
[1739045310789,0.66552435,96558.0,96557.0,0.0001067]
[1739045310997,0.65652435,96558.0,96557.0,0.0001067]
[1739045311314,0.65752435,96558.0,96557.0,0.0001067]
[1739045311516,0.66552435,96558.0,96557.0,0.0001067]
[1739045313656,0.1853547,96558.0,96557.0,0.0001067]
[1739045314504,0.2940807,96558.0,96557.0,0.0001067]
[1739045314685,0.1853547,96558.0,96557.0,0.0001067]
[1739045315158,0.2876357,96558.0,96557.0,0.0001067]
[1739045315358,0.2970357,96558.0,96557.0,0.0001067]
[1739045315765,0.1853547,96558.0,96557.0,0.0001067]
[1739045316209,0.2942367,96558.0,96557.0,0.0001067]
[1739045316363,0.1853547,96558.0,96557.0,0.0001067]
[1739045316979,0.18557878,96558.0,96557.0,0.0001067]
[1739045317862,0.30020478,96558.0,96557.0,0.0001067]
[1739045320399,0.55270843,96558.0,96557.0,0.0001067]
[1739045321217,0.55261817,96558.0,96557.0,0.0001067]
[1739045324755,0.65110024,96558.0,96557.0,0.0001067]
[1739045325483,0.55261817,96558.0,96557.0,0.0001067]
[1739045326056,0.155363,96548.0,96547.0,0.00391398]
[1739045326279,0.155363,96548.0,96547.0,0.00399377]
[1739045326482,0.155363,96548.0,96547.0,0.01447028]
[1739045326687,0.155363,96548.0,96547.0,0.00399377]
[1739045327378,0.161363,96548.0,96547.0,0.00399377]
[1739045327681,0.166363,96548.0,96547.0,0.00399377]
[1739045330262,0.166363,96548.0,96547.0,0.00410057]
[1739045330658,0.16658728,96548.0,96547.0,0.00410057]
[1739045330871,1.7723628,96548.0,96547.0,0.00018659]
[1739045331084,1.4058258,96548.0,96547.0,0.00018659]
[1739045331471,0.4989198,96548.0,96547.0,0.00018659]
[1739045331665,0.50426065,96548.0,96547.0,0.00018659]
[1739045331893,1.67715765,96548.0,96547.0,0.00018659]
[1739045332109,1.69048465,96548.0,96547.0,0.00018659]
[1739045336633,1.32719572,96548.0,96547.0,0.00018659]
[1739045340696,0.305372,96542.0,96537.0,0.0029068]
[1739045340873,1.00880565,96542.0,96541.0,0.00055869]
[1739045341072,0.40787565,96542.0,96541.0,0.00055869]
[1739045341481,1.00880565,96542.0,96541.0,0.00055869]
[1739045341710,0.95715265,96542.0,96541.0,0.00055869]
[1739045342324,0.95915265,96542.0,96541.0,0.00055869]
[1739045343043,0.96215265,96542.0,96541.0,0.00055869]
[1739045343455,0.507363,96542.0,96541.0,0.00055869]
[1739045344036,0.499723,96542.0,96541.0,0.00055869]
[1739045344235,0.310372,96542.0,96541.0,0.00055869]
[1739045346348,0.38633541,96542.0,96541.0,0.00055869]
[1739045346912,0.310372,96542.0,96541.0,0.00055869]
[1739045347310,0.656334,96542.0,96541.0,0.00055869]
[1739045347684,0.561431,96542.0,96541.0,0.00055869]
[1739045348442,0.310372,96542.0,96541.0,0.00055869]
[1739045349465,0.488366,96542.0,96541.0,0.00055869]
[1739045352784,0.58212901,96542.0,96541.0,0.00055869]
[1739045354213,0.182994,96542.0,96541.0,0.00055869]
[1739045354590,0.338366,96542.0,96541.0,0.00055869]
[1739045358366,0.44086965,96542.0,96541.0,0.00055869]
[1739045361580,0.26287565,96542.0,96541.0,0.00055869]
[1739045361781,0.58821465,96542.0,96541.0,0.00055869]
[1739045361987,0.79557765,96542.0,96541.0,0.00055869]
[1739045362181,0.68837065,96542.0,96541.0,0.00055869]
[1739045362932,0.56404965,96542.0,96541.0,0.00055869]
[1739045366643,0.56427393,96542.0,96541.0,0.00055869]
[1739045368843,0.42247928,96542.0,96541.0,0.07795869]
[1739045369460,0.42247928,96542.0,96541.0,0.00055869]
[1739045371056,0.40725728,96542.0,96541.0,0.00055869]
[1739045371281,0.16059628,96542.0,96541.0,0.00055869]
[1739045371751,0.30583228,96542.0,96541.0,0.01104276]
[1739045372193,0.16059628,96542.0,96541.0,0.01104276]
[1739045374064,0.29611028,96542.0,96541.0,0.01104276]
[1739045374662,0.29771028,96542.0,96541.0,0.01104276]
[1739045375905,0.27137228,96542.0,96541.0,0.01104276]
[1739045380261,0.16059628,96542.0,96541.0,0.01104276]
[1739045380400,0.16059628,96542.0,96541.0,0.09334276]
[1739045383449,0.00522428,96542.0,96541.0,0.09334276]
[1739045384643,0.00522428,96542.0,96541.0,0.29441676]
[1739045385884,0.00222428,96542.0,96541.0,0.29441676]
[1739045386101,0.00422428,96542.0,96541.0,0.29441676]
[1739045386584,0.00022428,96542.0,96541.0,0.29441676]
[1739045386786,0.00122428,96542.0,96541.0,0.29441676]
[1739045387008,0.00222428,96542.0,96541.0,0.29441676]
[1739045389946,0.00122428,96542.0,96541.0,0.29441676]
[1739045390078,0.00022428,96542.0,96541.0,0.29441676]
[1739045390343,0.00122428,96542.0,96541.0,0.29441676]
[1739045390790,0.00222428,96542.0,96541.0,0.29441676]
[1739045391302,0.00222428,96542.0,96541.0,0.13904276]
[1739045391434,0.00122428,96542.0,96541.0,0.13904276]
[1739045391793,0.00022428,96542.0,96541.0,0.13904276]
[1739045394229,0.15659628,96542.0,96541.0,0.13904276]
[1739045395116,0.15759628,96542.0,96541.0,0.13904276]
[1739045395614,0.15659628,96542.0,96541.0,0.13904276]
[1739045395990,0.15759628,96542.0,96541.0,0.13904276]
[1739045396360,0.00222428,96542.0,96541.0,0.13904276]
[1739045397983,0.00222428,96542.0,96541.0,0.12855869]
[1739045398244,0.00222428,96542.0,96541.0,0.13904276]
[1739045399754,0.15759628,96542.0,96541.0,0.01104276]
[1739045399911,0.15759628,96542.0,96541.0,0.00055869]
[1739045400661,0.15659628,96542.0,96541.0,0.00055869]
[1739045400810,0.15859628,96542.0,96541.0,0.00055869]
[1739045401463,0.16159628,96542.0,96541.0,0.00055869]
[1739045401681,0.16059628,96542.0,96541.0,0.00055869]
[1739045401851,0.16359628,96542.0,96541.0,0.00055869]
[1739045402469,0.16059628,96542.0,96541.0,0.00055869]
[1739045402668,0.16459628,96542.0,96541.0,0.00055869]
[1739045403255,0.31774028,96542.0,96541.0,0.00055869]
[1739045405763,0.57024393,96542.0,96541.0,0.00055869]
[1739045405967,0.61574393,96542.0,96541.0,0.00055869]
[1739045406739,0.61174393,96542.0,96541.0,0.00055869]
[1739045406953,0.60674393,96542.0,96541.0,0.00055869]
[1739045407279,0.61774393,96542.0,96541.0,0.00055869]
[1739045407450,0.305377,96539.0,96538.0,0.0144232]
[1739045407767,2.487881,96539.0,96538.0,0.0144232]
[1739045407916,0.305377,96539.0,96538.0,0.0144232]
[1739045408120,2.487744,96539.0,96538.0,0.0144232]
[1739045408342,1.943044,96539.0,96538.0,0.0144232]
[1739045408658,2.04528444,96539.0,96538.0,0.0144232]
[1739045408888,2.06460293,96539.0,96538.0,0.0144232]
[1739045409515,2.06860293,96539.0,96538.0,0.0144232]
[1739045410930,2.06460293,96539.0,96538.0,0.0144232]
[1739045411131,2.07160293,96539.0,96538.0,0.0144232]
[1739045412583,2.06660293,96539.0,96538.0,0.0144232]
[1739045412788,2.06660293,96539.0,96538.0,0.01453]
[1739045412987,2.07560293,96539.0,96538.0,0.01453]
[1739045414827,2.05368493,96539.0,96538.0,0.01453]
[1739045415029,1.95715793,96539.0,96538.0,0.01453]
[1739045416511,0.43793593,96539.0,96538.0,0.01453]
[1739045416718,2.17312293,96539.0,96538.0,0.01453]
[1739045417056,2.17312293,96539.0,96537.0,0.0029068]
[1739045417057,0.155411,96518.0,96515.0,0.05078841]
[1739045417464,0.155413,96517.0,96516.0,0.01108247]
[1739045419380,0.207204,96523.0,96516.0,0.01108247]
[1739045419742,0.155408,96520.0,96516.0,0.01097947]
[1739045419968,0.07570813,96530.0,96516.0,0.01097947]
[1739045420164,0.10399764,96530.0,96516.0,0.01097947]
[1739045420365,0.155409,96520.0,96516.0,0.01097947]
[1739045422003,0.15541,96519.0,96516.0,0.01097947]
[1739045422145,0.155407,96521.0,96516.0,0.01097947]
[1739045422346,0.155409,96520.0,96516.0,0.01097947]
[1739045422739,0.12117968,96530.0,96516.0,0.01097947]
[1739045422984,0.36262,96520.0,96515.0,0.05078841]
[1739045423188,0.155411,96519.0,96515.0,0.05078841]
[1739045423393,0.155411,96519.0,96516.0,0.01107512]
[1739045424327,0.01930098,96518.0,96516.0,0.01107512]
[1739045425131,0.155413,96517.0,96516.0,0.01107512]
[1739045425893,0.17471398,96517.0,96516.0,0.01107512]
[1739045426514,0.17571398,96517.0,96516.0,0.01107512]
[1739045426731,0.17671398,96517.0,96516.0,0.01107512]
[1739045429350,0.19438681,96517.0,96516.0,0.01107512]
[1739045430371,0.22531036,96517.0,96516.0,0.01107512]
[1739045430761,0.05222453,96517.0,96516.0,0.01107512]
[1739045431115,0.05222453,96517.0,96515.0,0.05089521]
[1739045431372,0.02130098,96517.0,96515.0,0.05089521]
[1739045432073,0.01930098,96517.0,96515.0,0.05089521]
[1739045432295,0.02030098,96517.0,96515.0,0.05089521]
[1739045432488,0.02130098,96517.0,96515.0,0.05089521]
[1739045433188,0.01930098,96516.0,96515.0,0.05089521]
[1739045434710,0.02030098,96516.0,96515.0,0.06428062]
[1739045435271,0.02130098,96516.0,96515.0,0.06428062]
[1739045437607,0.02130098,96516.0,96515.0,0.01349221]
[1739045437812,0.18899467,96516.0,96515.0,0.01349221]
[1739045437998,0.02130098,96516.0,96515.0,0.01349221]
[1739045438641,0.02030098,96516.0,96515.0,0.01349221]
[1739045438822,0.02002447,96516.0,96515.0,0.01349221]
[1739045439584,0.17543847,96516.0,96515.0,0.01349221]
[1739045439927,0.21647918,96516.0,96515.0,0.0001068]
[1739045440128,0.61356818,96516.0,96515.0,0.0001068]
[1739045440530,0.61897142,96516.0,96515.0,0.0001068]
[1739045441146,0.61697142,96516.0,96515.0,0.0001068]
[1739045441443,0.62097142,96516.0,96515.0,0.0001068]
[1739045441624,0.61897142,96516.0,96515.0,0.0001068]
[1739045441823,0.61697142,96516.0,96515.0,0.0001068]
[1739045442128,0.58893071,96516.0,96515.0,0.0001068]
[1739045445241,0.57693071,96516.0,96515.0,0.0001068]
[1739045445645,0.59393071,96516.0,96515.0,0.0001068]
[1739045446412,0.58593071,96516.0,96515.0,0.0001068]
[1739045446822,0.62482047,96516.0,96515.0,0.0001068]
[1739045447015,0.414446,96514.0,96494.0,0.0001067]
[1739045447248,0.207221,96515.0,96495.0,0.155446]
[1739045447249,0.155437,96502.0,96495.0,0.155446]
[1739045447387,0.15,96514.0,96494.0,0.0001067]
[1739045447594,0.07570813,96504.0,96494.0,0.0001067]
[1739045447808,0.207247,96503.0,96494.0,0.0001067]
[1739045448012,0.04901971,96502.0,96494.0,0.0001067]
[1739045448409,0.04947142,96502.0,96494.0,0.0001067]
[1739045448619,0.155442,96500.0,96494.0,0.0001067]
[1739045448820,0.03134147,96502.0,96495.0,0.155448]
[1739045449027,0.03134147,96502.0,96498.0,0.155443]
[1739045449271,0.03134147,96502.0,96495.0,0.0765]
[1739045450011,0.03088976,96501.0,96495.0,0.231946]
[1739045450357,0.03088976,96501.0,96498.0,0.155443]
[1739045450560,0.03088976,96501.0,96499.0,0.155441]
[1739045450789,0.03088976,96501.0,96497.0,0.155444]
[1739045450997,0.03088976,96501.0,96496.0,0.207262]
[1739045451292,0.01929456,96500.0,96496.0,0.207262]
[1739045451480,0.01929456,96500.0,96497.0,0.155444]
[1739045452512,0.01929456,96499.0,96497.0,0.155444]
[1739045453522,0.01929456,96498.0,96497.0,0.155444]
[1739045454769,0.02129456,96498.0,96497.0,0.155444]
[1739045455430,0.02329456,96498.0,96497.0,0.155444]
[1739045456628,0.02329456,96498.0,96495.0,0.231947]
[1739045456824,0.02329456,96498.0,96495.0,0.17900365]
[1739045457603,0.02129456,96498.0,96495.0,0.17900365]
[1739045457802,0.02329456,96498.0,96497.0,0.155445]
[1739045458007,0.002,96498.0,96497.0,0.155445]
[1739045458489,0.004,96498.0,96497.0,0.155445]
[1739045459043,0.006,96498.0,96497.0,0.155445]
[1739045459258,0.0232945,96498.0,96497.0,0.155445]
[1739045459585,0.0252945,96498.0,96497.0,0.155445]
[1739045459942,0.0232945,96498.0,96497.0,0.155445]
[1739045460565,0.0232945,96498.0,96495.0,0.17900365]
[1739045460566,0.0232945,96498.0,96495.0,0.33445065]
[1739045461200,0.0192945,96498.0,96496.0,0.155446]
[1739045461625,0.207236,96508.0,96496.0,0.155446]
[1739045461735,0.155433,96505.0,96498.0,0.155443]
[1739045461944,0.155435,96504.0,96498.0,0.155443]
[1739045462774,0.155435,96504.0,96496.0,0.15553471]
[1739045463513,0.155438,96502.0,96496.0,8.871e-05]
[1739045465338,0.157438,96502.0,96496.0,8.871e-05]
[1739045465474,0.002,96502.0,96496.0,0.15553471]
[1739045465685,0.004,96502.0,96496.0,0.15553471]
[1739045465907,0.007,96502.0,96496.0,0.15553471]
[1739045466154,0.005,96502.0,96496.0,8.871e-05]
[1739045466352,0.155438,96501.0,96496.0,8.871e-05]
[1739045466951,0.155444,96498.0,96496.0,8.871e-05]
[1739045467592,0.155445,96497.0,96496.0,8.871e-05]
[1739045470922,0.155443,96499.0,96496.0,8.871e-05]
[1739045471281,0.207249,96503.0,96496.0,8.871e-05]
[1739045471481,0.15544,96501.0,96496.0,8.871e-05]
[1739045472335,0.207249,96503.0,96496.0,8.871e-05]
[1739045472336,0.002,96499.0,96496.0,8.871e-05]
[1739045472741,0.001,96499.0,96496.0,8.871e-05]
[1739045473345,0.002,96501.0,96496.0,8.871e-05]
[1739045473560,0.155442,96499.0,96496.0,0.00019541]
[1739045474383,0.156442,96499.0,96496.0,0.00019541]
[1739045475177,0.157442,96499.0,96496.0,0.00019541]
[1739045475909,0.01933151,96498.0,96496.0,0.00019541]
[1739045477857,0.01933151,96497.0,96496.0,0.00019541]
[1739045481705,0.17477651,96497.0,96496.0,0.00019541]
[1739045483723,0.01933151,96497.0,96496.0,0.00019541]
[1739045485802,0.01888091,96497.0,96496.0,0.00019541]
[1739045498015,0.01910499,96497.0,96496.0,0.00019541]
[1739045501187,0.01901463,96497.0,96496.0,0.00019541]
[1739045503929,0.01901463,96497.0,96496.0,0.15564141]
[1739045505740,0.01901463,96497.0,96496.0,0.40525402]
[1739045505904,0.01901463,96497.0,96496.0,0.42721781]
[1739045506376,0.01901463,96497.0,96496.0,0.39034653]
[1739045507439,0.00022408,96497.0,96496.0,0.4019748]
[1739045507645,0.00122408,96497.0,96496.0,0.4019748]
[1739045508051,0.00122408,96497.0,96496.0,0.7312748]
[1739045508245,0.00222408,96497.0,96496.0,0.7312748]
[1739045508448,0.00222408,96497.0,96496.0,0.69887333]
[1739045509465,0.00222408,96497.0,96496.0,0.80137698]
[1739045511724,0.00222408,96497.0,96496.0,0.69887333]
[1739045512156,0.00222408,96497.0,96496.0,0.67587333]
[1739045512341,0.00222408,96497.0,96496.0,0.49656968]
[1739045512982,0.00022408,96497.0,96496.0,0.49656968]
[1739045513384,0.01952814,96497.0,96496.0,0.49656968]
[1739045513786,0.02052814,96497.0,96496.0,0.49656968]
[1739045516485,0.00122408,96497.0,96496.0,0.49656968]
[1739045517442,0.00122408,96497.0,96496.0,0.77837698]
[1739045517643,0.00122408,96497.0,96496.0,0.72527333]
[1739045518591,0.02052774,96497.0,96496.0,0.72527333]
[1739045519977,0.00122408,96497.0,96496.0,0.72527333]
[1739045522844,0.00122408,96497.0,96496.0,0.74827333]
[1739045530836,0.00122408,96497.0,96496.0,0.74827333]
[1739045536019,0.00122408,96497.0,96496.0,0.74799682]
[1739045540261,0.02055328,96497.0,96496.0,0.74799682]
[1739045540464,0.02055328,96497.0,96496.0,0.74299682]
[1739045541677,0.00122408,96497.0,96496.0,0.74299682]
[1739045543998,0.00122408,96497.0,96496.0,0.74310352]
[1739045550597,0.00122408,96497.0,96496.0,0.77549892]
[1739045555547,0.00122408,96497.0,96496.0,1.31269892]
[1739045557080,0.155404,96523.0,96501.0,0.023]
[1739045557287,0.155404,96523.0,96518.0,0.155411]
[1739045557963,0.155404,96523.0,96519.0,0.01206058]
[1739045558368,0.164404,96523.0,96517.0,0.155412]
[1739045558784,0.171404,96523.0,96517.0,0.155412]
[1739045559188,0.009,96523.0,96517.0,0.155412]
[1739045559508,0.007,96523.0,96518.0,0.15541]
[1739045560055,0.014,96523.0,96518.0,0.15541]
[1739045560231,0.169404,96523.0,96516.0,0.155413]
[1739045560434,0.155407,96521.0,96514.0,0.155417]
[1739045560645,0.155407,96521.0,96514.0,0.10250365]
[1739045560993,0.155407,96521.0,96515.0,0.155414]
[1739045561227,0.155407,96521.0,96515.0,0.16747857]
[1739045561598,0.384609,96523.0,96516.0,0.155413]
[1739045561804,0.370609,96523.0,96516.0,0.155413]
[1739045562010,0.155406,96522.0,96517.0,0.01206258]
[1739045562312,0.007,96521.0,96517.0,0.01206258]
[1739045562661,0.013,96521.0,96517.0,0.01206258]
[1739045562830,0.168406,96521.0,96517.0,0.01206258]
[1739045563211,0.168406,96521.0,96515.0,0.155416]
[1739045563409,0.162406,96521.0,96515.0,0.155416]
[1739045563766,0.168406,96521.0,96515.0,0.155416]
[1739045564347,0.161406,96521.0,96515.0,0.155416]
[1739045564750,0.006,96521.0,96514.0,0.30972565]
[1739045564999,0.155406,96521.0,96515.0,0.155416]
[1739045565140,0.01932713,96520.0,96515.0,0.155416]
[1739045566353,0.02532713,96520.0,96515.0,0.155416]
[1739045567025,0.03232713,96520.0,96515.0,0.155416]
[1739045567868,0.03232713,96520.0,96514.0,0.30972565]
[1739045568050,0.03232713,96520.0,96516.0,0.155414]
[1739045568620,0.02532713,96520.0,96516.0,0.155414]
[1739045569063,0.006,96520.0,96516.0,0.155414]
[1739045569287,0.16163108,96521.0,96516.0,0.155414]
[1739045569288,0.15563108,96521.0,96516.0,0.155414]
[1739045569437,0.006,96520.0,96516.0,0.155414]
[1739045569825,0.00022408,96521.0,96516.0,0.155414]
[1739045569959,0.00022408,96521.0,96517.0,0.155411]
[1739045570169,0.006,96520.0,96517.0,0.155411]
[1739045570393,0.006,96520.0,96515.0,0.155415]
[1739045570599,0.013,96520.0,96515.0,0.155415]
[1739045571249,0.006,96520.0,96515.0,0.155415]
[1739045571422,0.007,96520.0,96516.0,0.155414]
[1739045571737,0.00622408,96521.0,96516.0,0.155414]
[1739045572305,0.013,96520.0,96516.0,0.155414]
[1739045573189,0.007,96520.0,96516.0,0.155414]
[1739045574081,0.006,96520.0,96514.0,0.10250365]
[1739045574288,0.006,96520.0,96517.0,0.155411]
[1739045574477,0.006,96520.0,96517.0,0.20192497]
[1739045574999,0.006,96520.0,96517.0,0.04651397]
[1739045575205,0.013,96520.0,96516.0,0.155414]
[1739045575636,0.00022408,96521.0,96516.0,0.155414]
[1739045575839,0.007,96520.0,96518.0,0.155409]
[1739045576095,0.007,96520.0,96517.0,0.155412]
[1739045576320,0.013,96520.0,96517.0,0.155412]
[1739045577076,0.007,96520.0,96517.0,0.155412]
[1739045577278,0.00622408,96521.0,96517.0,0.155412]
[1739045577484,0.007,96520.0,96517.0,0.155412]
[1739045578034,0.00622408,96521.0,96517.0,0.155412]
[1739045578430,0.013,96520.0,96517.0,0.155412]
[1739045579015,0.006,96520.0,96514.0,0.30972665]
[1739045579343,0.00022408,96521.0,96516.0,0.155413]
[1739045579475,0.00622408,96521.0,96516.0,0.1555197]
[1739045579921,0.006,96520.0,96516.0,0.1555197]
[1739045580845,0.006,96520.0,96516.0,0.0001067]
[1739045581146,0.013,96520.0,96516.0,0.2073247]
[1739045581509,0.013,96520.0,96516.0,0.0001067]
[1739045581912,0.007,96520.0,96516.0,0.0001067]
[1739045582115,0.013,96520.0,96516.0,0.0001067]
[1739045585824,0.013,96520.0,96516.0,0.1555207]
[1739045586153,0.013,96520.0,96516.0,0.0001067]
[1739045597267,0.168409,96520.0,96516.0,0.0001067]
[1739045603300,0.013,96520.0,96516.0,0.0001067]
[1739045604349,0.168408,96520.0,96516.0,0.0001067]
[1739045605993,0.15541,96519.0,96516.0,0.0001067]
[1739045606415,0.013,96520.0,96516.0,0.0001067]
[1739045606928,0.15563108,96521.0,96516.0,0.0001067]
[1739045607299,0.012,96519.0,96516.0,0.0001067]
[1739045607701,0.005,96519.0,96516.0,0.0001067]
[1739045608011,0.16363108,96521.0,96516.0,0.0001067]
[1739045608418,0.15563108,96521.0,96516.0,0.0001067]
[1739045609007,0.006,96520.0,96516.0,0.0001067]
[1739045609830,0.007,96519.0,96516.0,0.0001067]
[1739045610298,0.15563108,96521.0,96516.0,0.0001067]
[1739045610540,0.16163108,96521.0,96516.0,0.0001067]
[1739045610810,0.00022408,96521.0,96516.0,0.0001067]
[1739045611045,0.005,96519.0,96516.0,0.0001067]
[1739045611946,0.00622408,96521.0,96516.0,0.0001067]
[1739045612151,0.005,96519.0,96516.0,0.0001067]
[1739045612415,0.1606786,96524.0,96516.0,0.0001067]
[1739045612712,0.155407,96521.0,96516.0,0.0001067]
[1739045612949,0.008,96521.0,96516.0,0.0001067]
[1739045613501,0.155405,96522.0,96516.0,0.0001067]
[1739045613709,0.006,96521.0,96516.0,0.0001067]
[1739045614518,0.014,96521.0,96516.0,0.0001067]
[1739045614728,0.014,96521.0,96517.0,0.01245892]